{"text_format":"3","workbook":"xlsx","n_sheets":8,"sheets":["手順","定期的な連絡先","不定期の知り合い","見込み顧客","第 1 四半期ネットワーク プラン","第 2 四半期ネットワーク プラン","第 3 四半期ネットワーク プラン","第 4 四半期ネットワーク プラン"],"not_rendered":{"defined_names":7},"read":"whole","date_system":"1900"}

{"sheet":"手順","index":0,"n_rows":17,"n_cols":5,"rows_kept":17,"merged":[[0,0,0,2],[1,1,1,6],[2,1,2,6],[3,1,3,6],[4,1,4,6],[5,1,5,6],[6,1,6,6],[7,1,7,6],[8,1,8,6],[9,1,9,6],[10,1,10,6],[11,1,11,6]]}
["タッチ ベース トラッカー",null,null,"手順"]
[null,"1.連絡先を分類するカテゴリを決定します。"]
[null,"• 定期的な連絡先 - 定期的に連絡を取る人"]
[null,"• 不定期の知り合い - 年に数回連絡を取る人"]
[null,"• 見込み顧客 - 時間があるときに連絡を取るために、保存する人や会社"]
[null,"2.対応するワークシート タブを開きます。"]
[null,"3.情報を入力します (セルに新しい行を作成するには、Windows では Alt キーを押しながら Enter キーを押すか、Mac では Option キーを押しながら Return キーを押します)。"]
[null,"モバイル Excel アプリの改行の手順については、こちらを参照してください。"]
[null,"4.[フォローアップ日] 列で、サンプルの日付/数式を削除し、連絡を取るタイミングを入力します。\n次に、Enter キーを押します。"]
[null,"5.[フォローアップ日] 列は、日付が非常に近づくと赤、近づくと黄色、\n時間が十分にある場合は緑で表示されます。"]
[null,"6.フォローアップ日が近づくと、それに応じて色が変わります。"]
[null,"7.連絡先に連絡したら、[完了] 列に「はい」と入力します。日付が灰色で表示されます。 "]
[null,"8.もう一度連絡する場合は、[はい] を [いいえ] に置き換え、新しい[フォローアップの日付] を入力します。"]
[null,null,"赤","黄","緑"]
[null,"定期的な連絡先","1 - 3 日後","4 - 7 日後","8 - 14 日以上後"]
[null,"不定期の知り合い","1 - 7 日後","8 - 45 日後","46 - 90 日以上後"]
[null,"見込み顧客","1 - 14 日後","15 - 60 日後","60 - 120 日以上後"]

{"sheet":"定期的な連絡先","index":1,"n_rows":7,"n_cols":8,"rows_kept":7,"merged":[[0,0,0,2]]}
["タッチ ベース トラッカー",null,null,"定期的な連絡先"]
[]
["名前","会社","連絡先情報","会った場所","メモ","フォローアップ日","完了","会話からのメモ"]
["Garth Fort","Adventure Works","プロジェクト マネージャー\ngarth@adventure-works.com\n(234) 555-0134\nadventure-works.com\nlinkedin.com/in/garth-fort","2010 年のトレード ショー","娘さんの Sandy について、および改装の進捗について尋ねる。大人数とスパイシーフードが嫌い。",{"$f":"TODAY()+8","v":"2021-07-21"},"いいえ"]
["名前","会社名","役職\nメール アドレス\n電話番号\nWeb サイト\nソーシャル プロファイルのリンク\n","場所","この人について覚えておきたいメモを入力します。会った場所、話した内容、次回話す時の話題などです。",{"$f":"TODAY()-3","v":"2021-07-10"},"はい"]
["名前","会社名","役職\nメール アドレス\n電話番号\nWeb サイト\nソーシャル プロファイルのリンク\n","場所","この人について覚えておきたいメモを入力します。会った場所、話した内容、次回話す時の話題などです。",{"$f":"TODAY()+-3","v":"2021-07-10"},"いいえ"]
["名前","会社名","役職\nメール アドレス\n電話番号\nWeb サイト\nソーシャル プロファイルのリンク\n","場所","この人について覚えておきたいメモを入力します。会った場所、話した内容、次回話す時の話題などです。",{"$f":"TODAY()+6","v":"2021-07-19"},"いいえ"]

{"sheet":"不定期の知り合い","index":2,"n_rows":7,"n_cols":8,"rows_kept":7,"merged":[[0,0,0,2]]}
["タッチ ベース トラッカー",null,null,"不定期の知り合い"]
[]
["名前","会社","連絡先情報","会った場所","メモ","フォローアップ日","完了","会話からのメモ"]
["Garth Fort","Adventure Works","リソース マネージャー\ngarth@adventure-works.com\n(434) 555-0123\nwww.adventure-works.com\nlinkedin.com/in/garth-fort","2016年 Vermont での休暇","採用に関する連絡先とマーケティングに関する質問の両方に有用",{"$f":"TODAY()+90","v":"2021-10-11"},"いいえ"]
["名前","会社名","役職\nメール アドレス\n電話番号\nWeb サイト\nソーシャル プロファイルのリンク\n","場所","この人について覚えておきたいメモを入力します。会った場所、話した内容、次回話す時の話題などです。",{"$f":"TODAY()-3","v":"2021-07-10"},"はい"]
["名前","会社名","役職\nメール アドレス\n電話番号\nWeb サイト\nソーシャル プロファイルのリンク\n","場所","この人について覚えておきたいメモを入力します。会った場所、話した内容、次回話す時の話題などです。",{"$f":"TODAY()+-3","v":"2021-07-10"},"いいえ"]
["名前","会社名","役職\nメール アドレス\n電話番号\nWeb サイト\nソーシャル プロファイルのリンク\n","場所","この人について覚えておきたいメモを入力します。会った場所、話した内容、次回話す時の話題などです。",{"$f":"TODAY()+40","v":"2021-08-22"},"いいえ"]

{"sheet":"見込み顧客","index":3,"n_rows":7,"n_cols":8,"rows_kept":7,"merged":[[0,0,0,2]]}
["タッチ ベース トラッカー",null,null,"見込み顧客"]
[]
["名前","会社","連絡先情報","会った場所","メモ","フォローアップ日","完了","会話からのメモ"]
["Garth Fort","フリーランサー","デザイナー\nsomeone@example.com\n425-555-0123\nexample.com\nlinkedin.com/in/garth-fort","2016 年の息子の卒業式","新卒 - 非常にスキルが高い。将来のクライアントに役立つ可能性あり。",{"$f":"TODAY()+89","v":"2021-10-10"},"いいえ"]
["名前","会社名","役職\nメール アドレス\n電話番号\nWeb サイト\nソーシャル プロファイルのリンク\n","場所","この人について覚えておきたいメモを入力します。会った場所、話した内容、次回話す時の話題などです。",{"$f":"TODAY()-3","v":"2021-07-10"},"はい"]
["名前","会社名","役職\nメール アドレス\n電話番号\nWeb サイト\nソーシャル プロファイルのリンク\n","場所","この人について覚えておきたいメモを入力します。会った場所、話した内容、次回話す時の話題などです。",{"$f":"TODAY()+-3","v":"2021-07-10"},"いいえ"]
["名前","会社名","役職\nメール アドレス\n電話番号\nWeb サイト\nソーシャル プロファイルのリンク\n","場所","この人について覚えておきたいメモを入力します。会った場所、話した内容、次回話す時の話題などです。",{"$f":"TODAY()+30","v":"2021-08-12"},"いいえ"]

{"sheet":"第 1 四半期ネットワーク プラン","index":4,"n_rows":20,"n_cols":6,"rows_kept":20,"merged":[[0,0,0,3],[2,0,2,3],[4,0,4,3],[14,5,17,5],[18,0,18,3]]}
["ネットワーク拡張計画"]
["手順"]
["今四半期にネットワークを広げる方法を書き込みます (電話をかける、旅行を増やすなど)。その後、新しい連絡先を取得するたびに、実際に連絡を取った連絡先の数を変更して追跡し、目標にどの程度近づいているかを確認します。"]
[]
["今四半期にネットワークを広げる方法"]
["1.さらに電話をかける"]
["2.旅行を増やす"]
[]
[]
[]
[]
[]
[]
["四半期ごとの連絡目標","期限","実際に連絡を取った四半期ごとの連絡先","結果"]
[20,{"$f":"TODAY()","v":"2021-07-13"},12,{"$f":"IF(tblGoals[[#This Row],[四半期ごとの連絡目標]]>0,tblGoals[[#This Row],[実際に連絡を取った四半期ごとの連絡先]]/tblGoals[[#This Row],[四半期ごとの連絡目標]],\"\")","v":{"v":0.6,"d":"60%"}},null,"0% - 25%\n26% - 50%\n51% - 75%\n76% - 100%\n\n達成率に基づく色の変化"]
[{"$nulls":3},{"$f":"IF(tblGoals[[#This Row],[四半期ごとの連絡目標]]>0,tblGoals[[#This Row],[実際に連絡を取った四半期ごとの連絡先]]/tblGoals[[#This Row],[四半期ごとの連絡目標]],\"\")","v":""}]
[{"$nulls":3},{"$f":"IF(tblGoals[[#This Row],[四半期ごとの連絡目標]]>0,tblGoals[[#This Row],[実際に連絡を取った四半期ごとの連絡先]]/tblGoals[[#This Row],[四半期ごとの連絡目標]],\"\")","v":""}]
[]
["結果に対する考察/改善のためのメモ"]
["営業終了。代わりにランチタイムに電話してみる。"]

{"sheet":"第 2 四半期ネットワーク プラン","index":5,"n_rows":20,"n_cols":6,"rows_kept":20,"merged":[[0,0,0,3],[2,0,2,3],[4,0,4,3],[14,5,17,5],[18,0,18,3]]}
["ネットワーク拡張計画"]
["手順"]
["今四半期にネットワークを広げる方法を書き込みます (電話をかける、旅行を増やすなど)。その後、新しい連絡先を取得するたびに、実際に連絡を取った連絡先の数を変更して追跡し、目標にどの程度近づいているかを確認します。"]
[]
["今四半期にネットワークを広げる方法"]
["1.さらに電話をかける"]
["2.旅行を増やす"]
[]
[]
[]
[]
[]
[]
["四半期ごとの連絡目標","期限","実際に連絡を取った四半期ごとの連絡先","結果"]
[20,{"$f":"TODAY()","v":"2021-07-13"},12,{"$f":"IF(tblGoals3[[#This Row],[四半期ごとの連絡目標]]>0,tblGoals3[[#This Row],[実際に連絡を取った四半期ごとの連絡先]]/tblGoals3[[#This Row],[四半期ごとの連絡目標]],\"\")","v":{"v":0.6,"d":"60%"}},null,"0% - 25%\n26% - 50%\n51% - 75%\n76% - 100%\n\n達成率に基づく色の変化"]
[{"$nulls":3},{"$f":"IF(tblGoals3[[#This Row],[四半期ごとの連絡目標]]>0,tblGoals3[[#This Row],[実際に連絡を取った四半期ごとの連絡先]]/tblGoals3[[#This Row],[四半期ごとの連絡目標]],\"\")","v":""}]
[{"$nulls":3},{"$f":"IF(tblGoals3[[#This Row],[四半期ごとの連絡目標]]>0,tblGoals3[[#This Row],[実際に連絡を取った四半期ごとの連絡先]]/tblGoals3[[#This Row],[四半期ごとの連絡目標]],\"\")","v":""}]
[]
["結果に対する考察/改善のためのメモ"]
["営業終了。代わりにランチタイムに電話してみる。"]

{"sheet":"第 3 四半期ネットワーク プラン","index":6,"n_rows":20,"n_cols":6,"rows_kept":20,"merged":[[0,0,0,3],[2,0,2,3],[4,0,4,3],[14,5,17,5],[18,0,18,3]]}
["ネットワーク拡張計画"]
["手順"]
["今四半期にネットワークを広げる方法を書き込みます (電話をかける、旅行を増やすなど)。その後、新しい連絡先を取得するたびに、実際に連絡を取った連絡先の数を変更して追跡し、目標にどの程度近づいているかを確認します。"]
[]
["今四半期にネットワークを広げる方法"]
["1.さらに電話をかける"]
["2.旅行を増やす"]
[]
[]
[]
[]
[]
[]
["四半期ごとの連絡目標","期限","実際に連絡を取った四半期ごとの連絡先","結果"]
[20,{"$f":"TODAY()","v":"2021-07-13"},12,{"$f":"IF(tblGoals34[[#This Row],[四半期ごとの連絡目標]]>0,tblGoals34[[#This Row],[実際に連絡を取った四半期ごとの連絡先]]/tblGoals34[[#This Row],[四半期ごとの連絡目標]],\"\")","v":{"v":0.6,"d":"60%"}},null,"0% - 25%\n26% - 50%\n51% - 75%\n76% - 100%\n\n達成率に基づく色の変化"]
[{"$nulls":3},{"$f":"IF(tblGoals34[[#This Row],[四半期ごとの連絡目標]]>0,tblGoals34[[#This Row],[実際に連絡を取った四半期ごとの連絡先]]/tblGoals34[[#This Row],[四半期ごとの連絡目標]],\"\")","v":""}]
[{"$nulls":3},{"$f":"IF(tblGoals34[[#This Row],[四半期ごとの連絡目標]]>0,tblGoals34[[#This Row],[実際に連絡を取った四半期ごとの連絡先]]/tblGoals34[[#This Row],[四半期ごとの連絡目標]],\"\")","v":""}]
[]
["結果に対する考察/改善のためのメモ"]
["営業終了。代わりにランチタイムに電話してみる。"]

{"sheet":"第 4 四半期ネットワーク プラン","index":7,"n_rows":20,"n_cols":6,"rows_kept":20,"merged":[[0,0,0,3],[2,0,2,3],[4,0,4,3],[14,5,17,5],[18,0,18,3]]}
["ネットワーク拡張計画"]
["手順"]
["今四半期にネットワークを広げる方法を書き込みます (電話をかける、旅行を増やすなど)。その後、新しい連絡先を取得するたびに、実際に連絡を取った連絡先の数を変更して追跡し、目標にどの程度近づいているかを確認します。"]
[]
["今四半期にネットワークを広げる方法"]
["1.さらに電話をかける"]
["2.旅行を増やす"]
[]
[]
[]
[]
[]
[]
["四半期ごとの連絡目標","期限","実際に連絡を取った四半期ごとの連絡先","結果"]
[20,{"$f":"TODAY()","v":"2021-07-13"},12,{"$f":"IF(tblGoals348[[#This Row],[四半期ごとの連絡目標]]>0,tblGoals348[[#This Row],[実際に連絡を取った四半期ごとの連絡先]]/tblGoals348[[#This Row],[四半期ごとの連絡目標]],\"\")","v":{"v":0.6,"d":"60%"}},null,"0% - 25%\n26% - 50%\n51% - 75%\n76% - 100%\n\n達成率に基づく色の変化"]
[{"$nulls":3},{"$f":"IF(tblGoals348[[#This Row],[四半期ごとの連絡目標]]>0,tblGoals348[[#This Row],[実際に連絡を取った四半期ごとの連絡先]]/tblGoals348[[#This Row],[四半期ごとの連絡目標]],\"\")","v":""}]
[{"$nulls":3},{"$f":"IF(tblGoals348[[#This Row],[四半期ごとの連絡目標]]>0,tblGoals348[[#This Row],[実際に連絡を取った四半期ごとの連絡先]]/tblGoals348[[#This Row],[四半期ごとの連絡目標]],\"\")","v":""}]
[]
["結果に対する考察/改善のためのメモ"]
["営業終了。代わりにランチタイムに電話してみる。"]